bitfinex-derivatives/quotes_ETHF0:USTF0_20250902
["timestamp","ask_amount","ask_price","bid_price","bid_amount"]
[1756840308508,0.319,4298.8,4298.4,3.2078]
[1756840309001,0.7387,4298.8,4298.7,0.5017]
[1756840309196,0.7387,4298.8,4297.8,3.2078]
[1756840309197,0.7387,4298.5,4297.8,3.2078]
[1756840309398,0.7387,4298.0,4297.9,0.5017]
[1756840309600,0.9837,4298.0,4297.9,0.5017]
[1756840309796,0.6647,4298.0,4297.8,3.2078]
[1756840309994,0.6647,4298.0,4295.5,30.8291]
[1756840309995,0.319,4297.8,4297.3,3.4984]
[1756840310204,3.4528,4298.0,4297.3,3.4984]
[1756840310205,0.56343786,4297.7,4297.4,0.2906]
[1756840310400,0.80844553,4297.6,4297.3,3.2078]
[1756840310599,0.319,4297.5,4297.3,3.4984]
[1756840310792,0.319,4297.5,4297.3,3.2078]
[1756840310996,0.319,4297.5,4297.4,0.2906]
[1756840311198,0.56346344,4297.5,4297.3,3.2078]
[1756840311497,0.80846344,4297.4,4296.9,0.2906]
[1756840311699,0.56346344,4297.3,4296.9,0.2906]
[1756840312401,0.56346344,4297.3,4296.8,3.2078]
[1756840312604,0.56346344,4297.3,4296.9,0.2906]
[1756840312807,0.56346344,4297.2,4296.9,0.2906]
[1756840313108,0.245,4297.3,4296.8,3.2078]
[1756840313308,0.56377478,4297.2,4296.8,3.2078]
[1756840313506,0.56377478,4297.1,4296.8,3.2078]
[1756840313700,0.564,4297.3,4296.8,3.2078]
[1756840314006,0.564,4297.3,4297.1,0.2111]
[1756840314007,1.30248338,4297.2,4297.1,0.2111]
[1756840315006,0.98348338,4297.2,4297.1,0.5017]
[1756840315205,1.54748338,4297.2,4296.4,0.2906]
[1756840315406,3.2078,4297.0,4296.4,0.2906]
[1756840315604,0.56378338,4296.9,4296.3,3.2078]
[1756840315798,0.6647,4296.8,4296.7,0.5017]
[1756840315997,1.54748338,4296.8,4296.7,0.5017]
[1756840316407,0.4197,4296.5,4296.4,0.5017]
[1756840316696,1.30248338,4296.5,4296.4,0.5017]
[1756840318112,1.22848338,4296.5,4296.4,0.7028]
[1756840319514,0.98348338,4296.5,4296.4,0.7028]
[1756840319806,0.80878338,4296.5,4296.4,0.7028]
[1756840320413,1.01518338,4296.5,4296.4,0.7028]
[1756840320812,4.44009437,4297.6,4296.5,0.4157]
[1756840321012,0.245,4298.1,4297.6,0.2906]
[1756840321214,0.56294151,4298.0,4297.6,0.2906]
[1756840321411,0.56294151,4297.9,4297.6,0.52327]
[1756840321611,0.245,4298.1,4297.6,0.2906]
[1756840321809,3.2078,4298.7,4297.7,0.23267]
[1756840322005,3.5268,4298.7,4297.6,0.50196]
[1756840322211,3.5268,4298.7,4297.4,3.2078]
[1756840322212,0.245,4298.6,4297.5,0.2693]
[1756840322421,0.245,4298.6,4297.6,0.2693]
[1756840322710,0.319,4298.5,4297.6,0.23266]
[1756840322916,0.564,4298.5,4297.7,0.50196]
[1756840323109,0.564,4298.5,4297.5,0.2693]
[1756840323304,0.564,4298.5,4297.6,0.2693]
[1756840323305,0.4496,4298.4,4297.6,0.2693]
[1756840323507,0.4496,4298.4,4297.6,0.50197]
[1756840323719,0.4496,4298.4,4297.5,0.2693]
[1756840323916,0.656,4298.4,4298.3,0.2111]
[1756840324112,0.975,4298.4,4298.3,0.2111]
[1756840324313,0.4496,4298.4,4298.3,0.6815]
[1756840324813,0.4496,4298.4,4298.3,4.6815]
[1756840325013,0.975,4298.4,4298.3,0.4122]
[1756840325408,0.4496,4298.4,4298.3,4.91384999]
[1756840325608,0.4496,4298.4,4298.3,5.12324788]
[1756840325809,0.4496,4298.4,4298.3,4.47839789]
[1756840326005,0.4496,4298.4,4298.3,4.71104788]
[1756840326509,3.7718,4300.0,4298.6,0.269]
[1756840326709,3.7718,4300.0,4299.2,0.269]
[1756840326910,0.319,4300.0,4299.3,0.269]
[1756840327218,0.245,4300.3,4299.3,0.269]
[1756840327421,0.61849,4300.4,4299.7,0.269]
[1756840328113,0.319,4300.3,4299.7,0.514]
[1756840330410,0.29949,4300.4,4299.8,0.269]
[1756840330617,0.61849,4300.4,4299.8,0.269]
[1756840331217,0.61849,4300.4,4300.3,0.4244]
[1756840331419,0.61849,4300.4,4300.3,0.6925]
[1756840331823,0.83129,4300.4,4300.3,0.4244]
[1756840332618,0.83129,4300.4,4300.3,0.6925]
[1756840332920,0.83129,4300.4,4300.3,0.4244]
[1756840333523,0.61849,4300.4,4300.3,0.6925]
[1756840333715,0.29949,4300.4,4300.3,0.6925]
[1756840334622,0.83379,4300.4,4300.3,0.4244]
[1756840334821,1.04519,4300.4,4300.3,0.4244]
[1756840335023,1.04519,4300.4,4300.3,0.2111]
[1756840335821,0.3215,4300.3,4299.2,3.4759]
[1756840336128,0.7457,4299.6,4299.5,0.2109]
[1756840336522,0.7457,4299.6,4299.5,0.4242]
[1756840337123,0.7457,4299.6,4299.5,0.2109]
[1756840337428,0.7457,4299.3,4299.2,3.2078]
[1756840338228,0.3215,4299.2,4297.8,0.2681]
[1756840338530,0.3215,4298.7,4297.8,0.2681]
[1756840338729,0.3215,4298.7,4298.1,3.4759]
[1756840338931,0.3215,4298.7,4298.1,0.2681]
[1756840339132,0.3215,4298.7,4297.8,0.244]
[1756840339628,0.3215,4298.7,4297.6,3.4759]
[1756840339828,0.3215,4298.7,4297.7,0.244]
[1756840340023,0.3215,4298.7,4297.6,3.4759]
[1756840340227,0.3215,4298.7,4297.8,0.244]
[1756840341021,0.3215,4298.7,4297.9,5.335]
[1756840341331,3.2078,4298.8,4298.0,5.335]
[1756840341520,0.4242,4298.1,4297.9,5.335]
[1756840341720,0.3215,4298.0,4297.9,5.335]
[1756840341925,0.7457,4298.0,4297.9,5.335]
[1756840343625,0.3215,4297.9,4297.7,5.335]
[1756840343825,0.7457,4297.8,4297.4,0.244]
[1756840344025,0.3215,4297.7,4297.4,0.244]
[1756840344225,0.2128,4297.5,4297.4,0.4549]
[1756840344430,0.3215,4297.4,4297.0,3.2078]
[1756840344632,0.4242,4297.2,4297.0,3.2078]
[1756840344833,0.7457,4297.1,4297.0,3.2078]
[1756840345328,0.7457,4297.1,4296.2,0.2681]
[1756840345329,0.4242,4297.1,4296.4,3.2078]
[1756840345632,0.1206,4297.5,4296.4,3.4187]
[1756840345633,0.5343,4296.5,4296.4,3.4187]
[1756840345827,0.7457,4296.5,4296.4,3.4187]
[1756840346028,0.3215,4296.5,4296.4,3.2078]
[1756840347829,0.3215,4297.0,4296.5,0.2681]
[1756840348024,3.2078,4297.8,4296.5,0.2681]
[1756840348228,3.5293,4297.7,4296.5,0.2681]
[1756840348433,0.1206,4299.0,4297.1,0.2681]
[1756840348434,3.2078,4298.1,4297.1,0.2681]
[1756840348626,3.2078,4298.1,4297.5,3.2078]
[1756840348830,0.3215,4298.0,4297.7,0.2681]
[1756840349333,3.2078,4298.1,4297.7,0.2681]
[1756840349834,3.2078,4298.1,4297.6,0.244]
[1756840350034,0.3215,4297.9,4297.5,0.244]
[1756840350837,0.1206,4298.0,4297.1,0.2681]
[1756840350838,0.3215,4298.0,4297.1,0.2681]
[1756840351038,0.4421,4298.0,4297.2,0.244]
[1756840351336,3.2078,4298.1,4297.5,3.2078]
[1756840351534,3.2078,4298.1,4297.7,0.2681]
[1756840352030,3.2078,4298.1,4297.7,5.6031]
[1756840352232,3.2078,4298.1,4297.6,0.244]
[1756840352233,3.2078,4298.1,4297.9,0.2681]
[1756840352437,0.3215,4298.4,4298.0,0.244]
[1756840352632,0.3215,4298.9,4298.1,3.4759]
[1756840352836,3.4518,4299.4,4298.2,0.2681]
[1756840353035,0.3215,4299.3,4298.3,0.23262]
[1756840353235,0.3215,4299.3,4298.7,3.2078]
[1756840353439,3.2078,4299.4,4298.8,0.244]
[1756840354031,3.2078,4299.4,4298.8,0.2681]
[1756840354233,3.2078,4299.4,4299.0,0.2681]
[1756840354438,0.3215,4299.8,4299.2,3.4759]
[1756840354737,0.2325327,4300.9,4298.9,0.244]
[1756840354738,0.3215,4300.8,4299.8,0.2681]
[1756840354926,0.3215,4300.3,4300.2,3.2078]
[1756840355127,0.3215,4300.8,4300.3,0.2681]
[1756840355531,0.3215,4300.8,4300.3,0.5121]
[1756840356137,3.2078,4301.1,4300.3,0.5121]
[1756840356332,0.62099,4300.4,4300.3,0.5121]
[1756840356941,0.62099,4300.4,4300.3,0.244]
[1756840357941,0.62099,4300.4,4300.3,0.5121]
[1756840357942,0.29949,4300.4,4300.3,0.5121]
[1756840360242,0.29949,4300.4,4300.3,4.5121]
[1756840360644,0.3215,4301.1,4300.3,4.244]
[1756840360936,0.4421,4301.5,4300.8,0.2681]
[1756840361142,0.4421,4301.5,4300.9,0.244]
[1756840361335,0.3215,4301.5,4300.9,0.244]
[1756840361740,0.4472,4301.5,4300.9,0.244]
[1756840361946,0.3215,4301.5,4300.9,0.244]
[1756840362546,0.3083,4301.9,4301.0,0.2688]
[1756840365142,0.3083,4301.9,4301.1,40.8]
[1756840365445,0.1206,4302.0,4301.2,3.2078]
[1756840365645,0.3083,4302.3,4301.4,0.2688]
[1756840365845,0.3083,4302.3,4301.7,3.4766]
[1756840366046,3.2078,4302.4,4301.7,3.2078]
[1756840366347,0.3083,4302.3,4301.8,0.244]
[1756840366752,3.2078,4302.4,4301.8,0.244]
[1756840366946,0.3083,4302.3,4301.8,0.244]
[1756840367944,3.2078,4302.4,4301.7,3.2078]
[1756840368146,0.3083,4302.3,4301.5,0.244]
[1756840368746,0.4281,4301.6,4301.5,0.244]
[1756840368943,0.3083,4302.3,4301.5,0.4431]
[1756840369148,0.7364,4301.6,4301.5,0.4431]
[1756840369351,0.7364,4301.6,4301.5,0.649]
[1756840369850,0.7364,4301.6,4301.5,0.4431]
[1756840371147,0.7364,4301.6,4301.5,0.244]
[1756840372143,0.4281,4301.6,4301.2,3.2078]
[1756840372339,0.4281,4301.4,4301.3,0.244]
[1756840372552,0.7364,4301.4,4301.3,0.244]
[1756840373049,0.7364,4301.4,4301.3,0.4431]
[1756840373244,0.7364,4301.4,4301.3,0.244]
[1756840373446,0.3083,4301.3,4300.6,3.2078]
[1756840373651,0.7364,4300.7,4300.6,3.4518]
[1756840374840,0.7364,4300.7,4300.6,3.6509]
[1756840375046,0.7364,4300.7,4300.6,3.8568]
[1756840375350,0.7364,4300.7,4300.6,3.6128]
[1756840375554,0.1257,4301.5,4300.6,3.8568]
[1756840375850,0.1257,4301.5,4300.6,4.1256]
[1756840376439,0.3083,4301.4,4300.6,4.1256]
[1756840376646,0.1257,4301.5,4300.6,4.1256]
[1756840376946,0.3083,4301.4,4300.6,4.1256]
[1756840377146,0.1257,4301.5,4300.6,4.1256]
[1756840377345,0.2135,4300.7,4300.6,3.6128]
[1756840377552,0.7364,4300.7,4300.6,3.6128]
[1756840377744,0.5218,4300.7,4300.6,4.1256]
[1756840377945,0.5218,4300.7,4300.6,3.8568]
[1756840378348,0.7364,4300.7,4300.6,3.8568]
[1756840379450,0.4281,4300.7,4300.1,44.0078]
[1756840379756,0.2135,4300.3,4300.2,0.649]
[1756840380048,0.5218,4300.3,4300.2,0.649]
[1756840380346,0.7364,4300.3,4300.2,0.4431]
[1756840380552,0.7364,4300.3,4300.2,0.1991]
[1756840381946,0.7364,4300.3,4300.1,3.4508]
[1756840381947,0.3083,4300.2,4300.1,3.4508]
[1756840382248,0.5218,4300.2,4300.1,3.8558]
[1756840382446,0.7364,4300.2,4300.1,3.8558]
[1756840382849,0.7364,4300.2,4300.1,3.2078]
[1756840383452,4.4281,4300.2,4299.4,30.712]
[1756840383653,4.4281,4300.2,4299.5,0.20951561]
[1756840383654,0.7364,4299.6,4299.5,0.20951561]
[1756840383852,0.7364,4299.6,4299.5,0.45251561]
[1756840384051,0.7364,4298.9,4298.8,3.4069]
[1756840384354,0.7364,4298.9,4298.8,3.2078]
[1756840384747,0.7364,4298.9,4297.9,0.2688]
[1756840384748,7.6359,4298.9,4298.0,3.2078]
[1756840384949,0.5218,4298.2,4298.1,0.61460665]
[1756840385150,0.7364,4298.2,4298.0,0.243]
[1756840385349,0.3083,4298.1,4297.5,3.2078]
[1756840385556,0.3083,4297.9,4297.5,3.4508]
[1756840385747,0.3083,4298.1,4297.5,3.4508]
[1756840387354,3.2078,4298.2,4297.5,3.2078]
[1756840387556,0.3083,4297.9,4297.6,0.243]
[1756840388050,0.1257,4298.0,4296.9,0.269]
[1756840388355,0.3083,4297.9,4297.0,0.243]
[1756840389754,0.1257,4298.0,4297.1,5.335]
[1756840389949,0.5218,4297.2,4297.1,0.1991]
[1756840390155,0.7364,4297.2,4297.1,0.1991]
[1756840390353,0.7364,4297.2,4297.1,0.405]
[1756840390756,0.3083,4297.9,4297.1,0.674]
[1756840391256,0.3083,4297.9,4297.0,0.243]
[1756840391257,0.517,4297.9,4297.8,0.2116]
[1756840391562,0.517,4297.9,4297.8,0.415]
[1756840392350,0.7162,4297.9,4297.4,0.243]
[1756840392551,0.2087,4297.8,4297.7,0.2034]
[1756840392755,0.7126,4297.8,4297.7,0.415]
[1756840392958,3.5125,4298.3,4297.7,0.6841]
[1756840393263,0.3047,4298.3,4297.7,0.6841]
[1756840393454,0.3687,4298.5,4297.7,0.6841]
[1756840393455,0.3047,4298.4,4297.7,0.6841]
[1756840393655,0.5134,4297.8,4297.7,0.415]
[1756840394261,0.5134,4297.8,4297.7,0.6841]
[1756840394960,0.7126,4297.8,4297.7,0.415]
[1756840395263,0.3047,4297.7,4297.6,0.415]
[1756840395464,0.3047,4297.7,4297.6,6.0191]
[1756840396065,0.3047,4298.4,4297.6,6.0191]
[1756840396262,0.1257,4298.5,4297.6,6.0191]
[1756840396656,0.2087,4297.7,4297.6,6.0191]
[1756840396955,0.5134,4297.7,4297.6,5.75]
[1756840397560,3.2078,4298.2,4297.6,6.0191]
[1756840397764,3.5125,4298.2,4298.1,0.415]
[1756840398363,3.5125,4298.2,4298.1,0.6841]
[1756840398761,0.1257,4299.0,4298.1,5.75]
[1756840398762,3.4508,4298.9,4298.1,5.75]
[1756840399064,0.7126,4298.8,4298.7,0.2116]
[1756840399464,0.532,4298.0,4297.8,5.335]
[1756840399666,0.532,4298.0,4297.3,3.2078]
[1756840399667,0.5134,4297.5,4297.4,5.75]
[1756840399855,0.7126,4297.5,4297.4,5.75]
[1756840400060,0.7126,4297.5,4297.4,5.5466]
[1756840400757,0.7126,4297.5,4297.4,5.75]
[1756840400953,0.7126,4297.5,4297.4,5.5466]
[1756840401157,0.5134,4297.5,4297.4,6.0191]
[1756840401372,0.3047,4297.5,4297.4,6.0191]
[1756840402762,0.7126,4297.5,4297.4,5.75]
[1756840402964,0.7126,4297.5,4297.4,5.335]
[1756840403170,0.8367,4297.5,4297.4,5.335]
[1756840403974,0.7126,4297.5,4297.4,5.5466]
[1756840404266,0.7126,4297.5,4297.4,0.2116]
[1756840404863,0.3047,4297.4,4297.3,5.335]
[1756840405069,0.1241,4297.0,4296.8,3.2078]
[1756840405264,0.7126,4296.3,4296.2,3.4194]
[1756840405667,3.2078,4296.9,4296.2,3.8919]
[1756840405668,0.3047,4296.8,4296.2,3.8919]
[1756840406162,3.2078,4296.9,4296.2,3.8919]
[1756840406367,0.3047,4296.8,4296.2,3.8919]
[1756840406673,3.2078,4296.9,4296.2,3.8919]
[1756840407168,0.3047,4296.8,4296.2,3.8919]
[1756840407974,3.2078,4296.9,4296.2,3.8919]
[1756840408173,0.7126,4296.3,4296.2,3.6228]
[1756840408678,0.7126,4296.3,4296.2,3.4194]
[1756840409568,0.7126,4296.3,4296.0,0.243]
[1756840409770,3.2078,4296.9,4296.1,0.2034]
[1756840409971,0.86496469,4296.8,4296.1,0.2034]
[1756840410275,0.3047,4296.8,4296.1,0.2034]
[1756840410476,0.2087,4296.2,4296.1,5.75]
[1756840410871,0.7126,4296.2,4296.1,5.5466]
[1756840411071,0.7126,4296.2,4296.1,5.335]
[1756840411474,0.3047,4296.1,4296.0,5.5384]
[1756840411778,0.3047,4296.7,4296.0,6.0191]
[1756840412172,0.56094687,4296.6,4296.0,6.0191]
[1756840412478,0.243,4296.8,4296.0,6.0191]
[1756840412777,0.56088866,4296.7,4296.6,0.2691]
[1756840412974,0.4079,4296.7,4296.2,8.5428]
[1756840413279,0.3047,4296.6,4296.3,0.2691]
[1756840413487,0.7126,4297.1,4297.0,0.415]
[1756840413773,0.56136001,4297.1,4296.6,0.2691]
[1756840413973,0.77006001,4297.0,4296.9,0.415]
[1756840414184,0.56136001,4297.0,4296.9,0.6841]
[1756840414376,3.4508,4297.7,4296.9,0.6841]
[1756840414576,0.3047,4297.5,4296.9,0.6841]
[1756840414778,0.3047,4297.3,4296.9,0.6841]
[1756840414982,0.2087,4297.0,4296.9,0.415]
[1756840415278,3.4508,4297.7,4296.9,0.6841]
[1756840415468,0.1241,4297.5,4296.9,0.6841]
[1756840415672,0.7126,4297.0,4296.5,3.2078]
[1756840415881,0.5134,4296.6,4296.5,3.4194]
[1756840416080,1.07516759,4296.6,4296.5,3.4194]
[1756840417195,1.07516759,4296.6,4296.5,3.6228]
[1756840417387,0.56176759,4296.6,4296.5,3.8919]
[1756840417593,0.56176759,4297.0,4296.5,3.2078]
[1756840417790,0.5134,4296.8,4296.7,0.415]
[1756840417992,1.27436759,4296.8,4296.7,0.415]
[1756840418194,0.7126,4295.9,4295.8,3.4194]
[1756840418389,0.7126,4295.9,4295.8,3.62887657]
[1756840418887,3.3319,4296.5,4295.8,3.8919]
[1756840419093,0.3047,4296.3,4295.8,3.8919]
[1756840419291,0.86654979,4296.2,4296.1,0.6841]
[1756840419489,1.27444979,4296.2,4296.1,0.2116]
[1756840420394,0.243,4296.8,4296.1,0.9271]
[1756840420596,0.7126,4296.3,4296.2,0.415]
[1756840420795,0.3047,4296.2,4295.9,5.335]
[1756840420989,0.1241,4296.5,4295.9,5.5466]
[1756840420990,0.7126,4296.0,4295.9,5.5466]
[1756840421195,1.07505673,4296.0,4295.9,5.75]
[1756840421896,1.39895673,4296.0,4295.9,5.335]
[1756840422293,4.60675673,4296.0,4295.9,5.335]
[1756840422795,4.60675673,4296.0,4295.9,5.65907248]
[1756840423196,8.60675673,4296.0,4295.9,5.65907248]
[1756840423399,4.60675673,4296.0,4295.9,0.32407248]
[1756840423999,4.30205673,4296.0,4295.3,3.2078]
[1756840424201,0.7208,4295.5,4295.4,0.52204094]
[1756840424390,0.8455,4295.5,4295.4,0.32404094]
[1756840424590,1.40702602,4295.5,4295.4,0.32404094]
[1756840424795,1.65002602,4295.5,4295.4,0.32404094]
[1756840424996,0.92922602,4295.5,4294.8,3.2078]
[1756840425193,0.92922602,4295.5,4294.8,3.4058]
[1756840425194,0.7208,4294.9,4294.8,3.4058]
[1756840425395,0.7208,4294.9,4294.8,3.72993299]
[1756840425904,0.7208,4294.9,4294.8,0.32413299]
[1756840426794,0.4094,4294.9,4294.8,0.32402082]
[1756840426995,0.7208,4294.9,4294.8,0.32402082]
[1756840427896,0.3114,4294.7,4293.8,3.4508]
[1756840428099,0.5216,4294.0,4293.9,0.5221497]
[1756840428295,0.7208,4294.0,4293.9,0.5221497]
[1756840428499,0.7208,4294.0,4293.9,0.3241497]
[1756840428500,0.8455,4294.0,4293.9,0.3241497]
[1756840429299,0.7208,4294.0,4293.9,0.7295497]
[1756840429602,0.5216,4294.0,4293.9,0.7295497]
[1756840430501,0.5444,4294.3,4293.9,0.7295497]
[1756840430702,0.5444,4294.3,4294.2,0.6747]
[1756840430997,0.3114,4294.8,4294.2,0.4054]
[1756840431202,3.2078,4294.9,4294.4,0.2693]
[1756840431394,0.3114,4295.4,4294.6,0.2693]
[1756840431594,0.3114,4295.4,4294.7,0.32394169]
[1756840431794,0.3114,4295.4,4294.8,0.32394169]
[1756840431999,0.3114,4294.9,4294.1,0.2693]
[1756840432197,0.3114,4294.9,4294.2,0.32391361]
[1756840432198,3.2078,4294.5,4294.2,0.32391361]
[1756840432496,0.3114,4294.4,4293.6,0.243]
[1756840432698,3.3325,4295.0,4293.8,0.2693]
[1756840432896,1.115163,4294.9,4294.2,3.2078]
[1756840433090,0.243,4294.9,4294.3,0.59328881]
[1756840433296,0.3114,4294.8,4294.4,0.32398881]
[1756840433498,0.243,4294.8,4294.2,3.2078]
[1756840433803,0.3114,4294.7,4294.3,0.32401366]
[1756840434097,0.243,4294.8,4294.2,3.2078]
[1756840434303,0.3114,4294.7,4294.3,0.32401584]
[1756840434503,0.3114,4294.7,4294.4,0.32401584]
[1756840434798,0.243,4294.8,4294.2,3.2078]
[1756840435001,0.3114,4294.7,4294.3,0.32405534]
[1756840435202,0.3114,4294.7,4294.2,3.2078]
[1756840435395,0.3114,4294.7,4294.3,0.32405514]
[1756840435593,0.3114,4294.7,4294.2,3.2078]
[1756840435804,0.3114,4294.7,4294.3,0.32401829]
[1756840435999,0.3114,4294.7,4294.2,3.2078]
[1756840436199,0.243,4294.8,4294.3,0.32401946]
[1756840436507,0.4361,4294.0,4293.3,0.2693]
[1756840436803,0.4361,4294.0,4293.1,3.2078]
[1756840436804,0.3114,4293.9,4293.4,0.32411958]
[1756840436999,0.3114,4293.9,4293.5,0.32411958]
[1756840437306,0.3114,4293.9,4293.1,3.2078]
[1756840437307,3.2078,4293.8,4293.1,3.2078]
[1756840437499,0.3114,4293.7,4293.2,0.32403019]
[1756840437703,3.44071,4293.8,4293.1,3.2078]
[1756840438004,0.1247,4293.5,4293.1,3.2078]
[1756840438203,0.243,4293.4,4293.1,3.2078]
[1756840438400,0.3114,4293.3,4292.8,0.40378856]
[1756840438603,0.3114,4293.3,4292.9,0.32393101]
[1756840438801,0.3114,4293.3,4292.8,0.40378856]
[1756840439004,0.243,4293.4,4292.8,0.40378856]
[1756840439403,0.3114,4293.3,4292.8,0.40378856]
[1756840440009,0.243,4293.4,4292.8,0.40378856]
[1756840440302,0.5544,4293.4,4292.8,0.40378856]
[1756840440502,0.243,4293.4,4292.8,0.40378856]
[1756840440711,0.3114,4293.3,4292.8,0.40378856]
[1756840440898,0.243,4293.4,4292.8,0.40378856]
[1756840441103,3.5192,4292.9,4292.8,0.40378856]
[1756840441298,4.07932428,4292.9,4292.8,0.08128856]
[1756840441512,7.99515,4292.9,4291.7,0.2904]
[1756840441703,0.3114,4292.3,4291.8,0.32380028]
[1756840441905,0.5544,4292.2,4291.3,0.2904]
[1756840442206,0.5544,4292.2,4291.5,0.2904]
[1756840442710,0.5544,4292.2,4289.7,32.4059386]
[1756840442711,0.3114,4291.8,4291.1,0.2904]
[1756840442913,0.243,4291.7,4291.1,0.2904]
[1756840443405,0.3114,4291.6,4290.8,0.2904]
[1756840443603,3.2078,4291.9,4290.8,0.2904]
[1756840443804,0.5544,4291.8,4290.8,0.2904]
[1756840445012,0.3114,4291.6,4290.8,0.2904]
[1756840446101,0.3114,4291.4,4290.8,0.2904]
[1756840446304,3.2078,4290.9,4287.9,0.2904]
[1756840446601,3.2078,4288.5,4288.1,0.2904]
[1756840446802,3.2078,4288.5,4288.0,0.44766481]
[1756840446803,0.21,4288.7,4288.5,0.1249]
[1756840447104,3.2078,4289.0,4288.6,0.32276481]
[1756840447310,3.2078,4289.0,4288.7,0.32276481]
[1756840447311,0.243,4288.9,4288.7,0.32276481]
[1756840447510,0.243,4288.9,4288.5,0.1249]
[1756840447810,0.243,4288.8,4288.6,0.2904]
[1756840448108,3.2078,4289.0,4288.6,0.2904]
[1756840449409,3.2078,4289.0,4288.5,0.1249]
[1756840449616,3.2078,4289.0,4288.6,0.2904]
[1756840449617,0.243,4288.9,4288.6,0.2904]
[1756840449912,0.243,4288.8,4288.6,0.2904]
[1756840450410,0.23317001,4288.7,4288.1,0.2904]
[1756840450614,0.23317001,4288.7,4287.5,0.1249]
[1756840450615,3.2078,4288.5,4287.5,0.1249]
[1756840450814,3.2078,4288.5,4287.6,0.2904]
[1756840452012,0.243,4288.4,4287.6,0.2904]
[1756840452313,0.243,4288.3,4288.0,0.1191]
[1756840452708,0.243,4288.3,4288.1,0.3092]
[1756840453014,0.243,4288.2,4288.1,0.3092]
[1756840453713,0.243,4288.2,4287.6,0.3092]
[1756840454517,3.2078,4288.5,4287.6,0.3092]
[1756840454518,0.243,4288.1,4287.6,0.3092]
[1756840454915,0.243,4288.1,4287.5,0.4341]
[1756840455418,3.2078,4288.0,4287.5,0.3092]
[1756840455618,0.243,4287.9,4287.1,0.3092]
[1756840455821,0.243,4287.8,4287.6,0.3092]
[1756840456217,3.4438302,4288.0,4287.5,0.1191]
[1756840456513,0.2360302,4288.0,4287.6,0.3092]
[1756840456719,30.775,4289.0,4288.5,0.1191]
[1756840456720,33.9828,4289.0,4288.5,0.1191]
[1756840456921,0.243,4288.9,4288.5,0.1191]
[1756840457120,0.243,4288.9,4288.6,0.3092]
[1756840457628,3.4508,4289.0,4288.6,0.3092]
[1756840457819,3.4508,4289.0,4288.5,0.1191]
[1756840458121,3.2078,4289.0,4288.6,0.3092]
[1756840458618,0.243,4288.9,4288.6,0.3092]
[1756840459321,0.4745282,4288.9,4288.6,0.3092]
[1756840459615,0.4745282,4288.9,4288.5,0.1191]
[1756840459814,0.4745282,4288.9,4288.6,0.3092]
[1756840460014,0.4745282,4288.9,4288.5,0.1191]
[1756840460215,0.4745282,4288.9,4288.6,0.3092]
[1756840460615,0.243,4288.8,4288.6,0.3092]
[1756840460816,0.243,4288.9,4288.6,0.3092]
[1756840461316,0.47695258,4288.9,4288.5,0.1191]
[1756840462120,0.47695258,4288.9,4288.0,0.1191]
[1756840462121,0.23317001,4288.8,4288.0,0.3092]
[1756840462309,3.2078,4288.2,4287.6,0.3092]
[1756840462513,0.243,4288.1,4287.4,3.2078]
[1756840463113,0.243,4288.1,4287.5,0.3092]
[1756840463514,0.23322,4288.0,4286.9,0.3092]
[1756840463715,3.2078,4287.7,4286.9,0.3092]
[1756840464021,0.243,4287.6,4287.0,0.1191]
[1756840464519,3.2078,4287.7,4287.1,0.3092]
[1756840464719,0.80549167,4287.6,4286.9,0.3092]
[1756840464920,0.243,4287.6,4286.9,0.3092]
[1756840465129,0.56240933,4287.5,4286.9,0.3092]
[1756840465319,3.2078,4287.2,4286.6,0.3092]
[1756840465523,0.5628832,4287.1,4286.6,0.3092]
[1756840465816,3.2078,4287.2,4286.6,0.3092]
[1756840465817,0.243,4287.0,4286.6,0.3092]
[1756840466014,0.56288257,4286.9,4286.6,0.3092]
[1756840466214,0.56341733,4286.8,4286.6,0.3092]
[1756840466415,0.56341543,4286.7,4286.6,0.3092]
[1756840466815,7.77121543,4286.7,4285.5,0.4283]
[1756840467019,3.2078,4286.3,4285.6,0.3092]
[1756840467221,0.80641543,4286.2,4285.6,0.3092]
[1756840467418,0.56341543,4286.1,4285.6,0.3092]
[1756840468120,0.56341543,4286.1,4286.0,0.1191]
[1756840468312,0.56341543,4286.1,4286.0,0.4283]
[1756840468622,0.80641543,4286.1,4286.0,0.4283]
[1756840468823,0.56341543,4286.1,4286.0,4.4283]
[1756840469021,3.2078,4286.2,4286.1,0.3092]
[1756840469220,0.56380908,4286.2,4286.1,0.3092]
[1756840470711,0.56380908,4286.2,4285.5,0.4283]
[1756840471015,3.2078,4285.8,4285.1,0.3092]
[1756840471215,0.56380908,4285.7,4285.6,0.3092]
[1756840471618,0.56380908,4285.8,4285.6,0.3092]
[1756840471820,0.56380908,4285.8,4285.5,0.1191]
[1756840472221,0.56380908,4285.8,4285.1,0.3092]
[1756840472635,0.56380908,4285.8,4281.5,3.3269]
[1756840472636,3.2078,4285.2,4281.5,3.3269]
[1756840472823,3.2078,4283.5,4282.1,0.18889067]
[1756840473119,0.56499841,4283.4,4282.7,0.3092]
[1756840473324,1.05202533,4283.4,4282.7,0.3092]
[1756840473723,5.05202533,4283.4,4282.2,0.3092]
[1756840474432,0.56499841,4283.4,4282.5,0.1191]
[1756840474622,0.81599841,4283.4,4283.3,0.31082745]